bitfinex-derivatives/quotes_SOLF0:USTF0_20250530
["timestamp","ask_amount","ask_price","bid_price","bid_amount"]
[1748579799012,6.0664,164.81,164.8,0.03967455]
[1748579801617,0.04100514,164.83,164.8,0.03967455]
[1748579802520,6.0662,164.82,164.8,0.03967455]
[1748579802823,0.04100514,164.83,164.8,0.03967455]
[1748579803012,6.0663,164.82,164.8,0.03967455]
[1748579805824,6.10680514,164.83,164.8,0.03967455]
[1748579806122,6.10680514,164.83,164.8,6.10647455]
[1748579806422,0.04100514,164.83,164.8,0.03967455]
[1748579807025,6.0663,164.82,164.8,0.03967455]
[1748579807216,0.04100514,164.83,164.8,0.03967455]
[1748579807623,0.04100514,164.83,164.8,6.10627455]
[1748579808731,6.10690514,164.83,164.81,6.0664]
[1748579808932,0.04100514,164.83,164.8,0.03967455]
[1748579809332,0.04100514,164.83,164.81,6.0664]
[1748579810535,0.04100514,164.83,164.81,36.1464]
[1748579818030,0.04100514,164.83,164.82,4.23815984]
[1748579819134,6.10670514,164.83,164.82,4.23815984]
[1748579819531,0.04100514,164.83,164.82,4.23815984]
[1748579819732,0.04100514,164.83,164.81,30.08]
[1748579820038,0.04100514,164.83,164.82,4.23815984]
[1748579822042,6.10680514,164.83,164.82,4.23815984]
[1748579822230,0.04100514,164.83,164.81,30.08]
[1748579822741,6.10680514,164.83,164.81,30.08]
[1748579825140,6.10680514,164.83,164.81,34.31815984]
[1748579827635,0.04100514,164.83,164.81,40.38455984]
[1748579830543,0.04100514,164.83,164.82,6.0661]
[1748579831249,0.04100514,164.83,164.81,40.38445984]
[1748579838741,6.10670514,164.83,164.81,30.08]
[1748579839047,0.04100514,164.83,164.81,30.08]
[1748579839548,6.0661,164.82,164.81,30.08]
[1748579839852,0.04100514,164.83,164.8,4.27783439]
[1748579841043,6.0661,164.82,164.8,4.27783439]
[1748579841240,0.04100514,164.83,164.8,4.27783439]
[1748579842246,6.10680514,164.83,164.8,10.34433439]
[1748579842444,6.10680514,164.83,164.8,4.27783439]
[1748579845051,6.10680514,164.83,164.8,34.35783439]
[1748579845952,6.0661,164.82,164.8,34.35783439]
[1748579846150,0.04100514,164.83,164.8,34.35783439]
[1748579846444,6.0663,164.82,164.8,34.35783439]
[1748579849748,6.10680514,164.83,164.8,34.35783439]
[1748579852353,6.0661,164.82,164.8,34.35783439]
[1748579859056,6.0664,164.81,164.8,34.35783439]
[1748579859252,6.0664,164.81,164.8,30.11967455]
[1748579860057,6.0664,164.81,164.8,0.03967455]
[1748579860859,4.23815984,164.81,164.73,34.31815984]
[1748579861057,30.08,164.85,164.73,34.31815984]
[1748579861058,4.23815984,164.79,164.73,34.31815984]
[1748579861559,6.0685,164.76,164.73,34.31815984]
[1748579861760,6.11348951,164.76,164.73,34.36232057]
[1748579862759,4.1165,164.82,164.75,4.23815984]
[1748579862958,2.0093,164.82,164.78,4.23815984]
[1748579863162,6.0668,164.81,164.78,4.23815984]
[1748579863860,6.10553258,164.81,164.78,4.27679831]
[1748579864058,6.10553258,164.81,164.78,0.03863847]
[1748579864059,6.0669,164.8,164.78,0.03863847]
[1748579865862,6.0672,164.79,164.78,0.03863847]
[1748579866555,6.0668,164.8,164.78,0.03863847]
[1748579869061,6.0672,164.79,164.78,0.03863847]
[1748579869762,6.0669,164.8,164.78,0.03863847]
[1748579876368,0.03873258,164.81,164.78,0.03863847]
[1748579876970,6.0672,164.79,164.78,0.03863847]
[1748579878975,6.069,164.74,164.73,30.1]
[1748579880682,6.0694,164.73,164.72,0.04039518]
[1748579880877,0.03834828,164.75,164.67,237.89242106]
[1748579881084,2.0508,164.72,164.67,237.89242106]
[1748579881979,2.0508,164.72,164.68,0.04510359]
[1748579881980,6.0705,164.7,164.68,0.04510359]
[1748579882285,0.04161857,164.71,164.68,0.04510359]
[1748579883187,0.04161857,164.71,164.68,6.11610359]
[1748579883381,0.04161857,164.71,164.68,0.04510359]
[1748579884484,0.04161857,164.71,164.69,6.0708]
[1748579884685,0.04161857,164.71,164.68,0.04510359]
[1748579885981,0.04161857,164.71,164.7,6.0705]
[1748579887190,0.04161857,164.71,164.69,6.0708]
[1748579887896,0.04161857,164.71,164.7,6.0705]
[1748579888595,1.9733,164.79,164.7,6.62543151]
[1748579888793,1.9733,164.79,164.71,30.1]
[1748579889195,6.0678,164.78,164.74,6.069]
[1748579889495,6.1124198,164.78,164.74,6.10765346]
[1748579890190,6.1124198,164.78,164.75,6.0686]
[1748579890391,6.1124198,164.78,164.74,0.03865346]
[1748579890891,6.0679,164.77,164.74,0.03865346]
[1748579891295,6.1123198,164.78,164.74,0.03865346]
[1748579891492,0.0446198,164.78,164.74,0.03865346]
[1748579891693,0.0446198,164.78,164.75,30.1]
[1748579892093,6.0679,164.77,164.75,30.1]
[1748579893799,0.0446198,164.78,164.75,30.1]
[1748579894702,0.0446198,164.78,164.75,36.72543151]
[1748579895498,0.0446198,164.78,164.76,6.068]
[1748579896600,2.0041,164.83,164.75,36.72543151]
[1748579896798,2.0444,164.84,164.75,36.72543151]
[1748579897708,30.1,164.86,164.75,36.72543151]
[1748579897709,0.04542045,164.81,164.78,6.10932505]
[1748579898009,0.04542045,164.81,164.79,30.1]
[1748579899012,0.04542045,164.81,164.8,6.0668]
[1748579900307,0.04542045,164.81,164.79,36.1671]
[1748579900610,0.04542045,164.81,164.79,30.1]
[1748579901300,6.11212045,164.81,164.79,30.1]
[1748579901500,0.04542045,164.81,164.79,30.1]
[1748579902903,0.04542045,164.81,164.79,36.1671]
[1748579903103,0.04542045,164.81,164.79,36.72543151]
[1748579903900,0.04542045,164.81,164.79,42.79253151]
[1748579904507,0.04542045,164.81,164.8,6.0668]
[1748579905108,0.04542045,164.81,164.79,42.79243151]
[1748579905606,0.04542045,164.81,164.79,36.72543151]
[1748579907008,0.04542045,164.81,164.79,42.79253151]
[1748579907804,0.04542045,164.81,164.8,6.0668]
[1748579908806,0.04542045,164.81,164.79,42.79253151]
[1748579909508,0.04542045,164.81,164.79,36.1671]
[1748579910303,0.04542045,164.81,164.79,30.1]
[1748579911214,6.11192045,164.81,164.79,30.1]
[1748579911811,0.04542045,164.81,164.79,30.1]
[1748579915015,6.0668,164.8,164.79,30.1]
[1748579915514,6.0672,164.79,164.78,0.04202505]
[1748579917414,0.04542045,164.81,164.78,0.04202505]
[1748579920513,6.0668,164.8,164.78,0.04202505]
[1748579922213,6.0672,164.79,164.78,0.04202505]
[1748579923418,6.0669,164.8,164.78,0.04202505]
[1748579928433,6.0672,164.79,164.78,0.04202505]
[1748579934140,6.0669,164.8,164.78,0.04202505]
[1748579934537,0.04542045,164.81,164.78,0.04202505]
[1748579936040,6.11182045,164.81,164.78,0.04202505]
[1748579939143,0.04542045,164.81,164.78,0.04202505]
[1748579940045,6.11192045,164.81,164.78,0.04202505]
[1748579943651,0.04542045,164.81,164.78,0.04202505]
[1748579944547,6.0671,164.79,164.78,0.04202505]
[1748579949351,6.0669,164.8,164.78,0.04202505]
[1748579949646,0.04542045,164.81,164.78,0.04202505]
[1748579951146,6.0741,164.87,164.8,6.62543151]
[1748579951454,6.0741,164.87,164.81,30.62]
[1748579952046,6.0649,164.85,164.81,30.62]
[1748579952251,6.0649,164.85,164.82,0.03962358]
[1748579952453,0.0383686,164.86,164.82,0.03962358]
[1748579952651,6.0654,164.84,164.82,0.03962358]
[1748579954455,0.0383686,164.86,164.82,0.03962358]
[1748579955149,6.0652,164.85,164.82,0.03962358]
[1748579955349,0.0383686,164.86,164.82,0.03962358]
[1748579956653,6.0653,164.84,164.82,0.03962358]
[1748579957457,6.0649,164.85,164.82,0.03962358]
[1748579958258,6.0654,164.84,164.82,0.03962358]
[1748579958451,0.0383686,164.86,164.82,0.03962358]
[1748579959551,6.0656,164.83,164.82,0.03962358]
[1748579964458,6.0671,164.79,164.78,30.52]
[1748579981062,6.0675,164.78,164.77,0.04324346]
[1748579985273,0.03903402,164.8,164.77,0.04324346]
[1748579986070,0.03903402,164.8,164.77,30.56324346]
[1748579987082,6.0671,164.79,164.77,30.56324346]
[1748579990771,0.03903402,164.8,164.77,30.56324346]
[1748579991278,6.0673,164.79,164.77,30.56324346]
[1748579994980,6.0675,164.78,164.77,30.56324346]
[1748579996275,6.0672,164.79,164.77,30.56324346]
[1748579998082,6.0672,164.79,164.78,4.24013578]
[1748580001181,0.03903402,164.8,164.78,4.24013578]
[1748580001675,6.0659,164.83,164.78,10.30733578]
[1748580001882,6.0659,164.83,164.82,4.24013578]
[1748580008084,6.066,164.82,164.81,30.43892665]
[1748580012298,6.066,164.82,164.81,0.03892665]
[1748580019696,6.0656,164.83,164.81,4.27906243]
[1748580020395,0.04376786,164.84,164.81,4.27906243]
[1748580020597,0.04376786,164.84,164.83,4.24013578]
[1748580021891,0.04376786,164.84,164.82,30.38]
[1748580022790,6.10906786,164.84,164.82,30.38]
[1748580036318,6.0656,164.83,164.82,30.38]
[1748580044029,6.0656,164.83,164.82,34.61820501]
[1748580045225,6.0656,164.83,164.82,30.38]
[1748580053429,6.0656,164.83,164.82,34.61820501]
[1748580056329,6.10916786,164.84,164.82,34.61820501]
[1748580057734,6.0656,164.83,164.82,34.61820501]
[1748580061535,6.10916786,164.84,164.82,34.61820501]
[1748580061737,0.04376786,164.84,164.82,34.61820501]
[1748580062440,6.10916786,164.84,164.82,34.61820501]
[1748580064541,6.0656,164.83,164.82,34.61820501]
[1748580064743,6.0656,164.83,164.82,30.38]
[1748580076344,0.04376786,164.84,164.82,30.38]
[1748580076548,0.04376786,164.84,164.83,4.23744237]
[1748580076950,6.10906786,164.84,164.83,4.23744237]
[1748580080353,6.0656,164.83,164.82,30.38]
[1748580088760,6.10906786,164.84,164.82,30.38]
[1748580089159,0.04376786,164.84,164.82,30.38]
[1748580089355,6.0656,164.83,164.82,30.38]
[1748580091356,0.04376786,164.84,164.82,30.38]
[1748580091557,0.04376786,164.84,164.82,34.61831213]
[1748580091964,0.04376786,164.84,164.82,40.68431213]
[1748580093563,0.04376786,164.84,164.83,10.30299263]
[1748580094773,0.04376786,164.84,164.83,4.23739263]
[1748580095874,0.04376786,164.84,164.83,10.30299263]
[1748580096066,0.04376786,164.84,164.83,4.23739263]
[1748580098465,0.04376786,164.84,164.83,10.30299263]
[1748580099070,30.38,164.91,164.85,6.0649]
[1748580099270,6.1781,164.92,164.87,4.23739263]
[1748580099866,10.41549263,164.92,164.85,4.23739263]
[1748580100272,0.04494462,164.9,164.87,0.04181138]
[1748580100472,6.0638,164.88,164.87,0.04181138]
[1748580102969,6.0638,164.88,164.87,1.138e-05]
[1748580112377,0.04494462,164.9,164.87,4.23740401]
[1748580112980,6.10834462,164.9,164.87,4.23740401]
[1748580113682,6.0635,164.89,164.87,1.138e-05]
[1748580113883,0.04494462,164.9,164.87,1.138e-05]
[1748580114578,6.0638,164.88,164.87,1.138e-05]
[1748580132893,10.30119263,164.88,164.87,1.138e-05]
[1748580139898,6.0638,164.88,164.87,1.138e-05]
[1748580140101,10.30119263,164.88,164.87,1.138e-05]
[1748580143697,6.0664,164.81,164.8,30.14]
[1748580143892,42.2671,164.89,164.79,4.23739263]
[1748580143893,4.23739263,164.84,164.79,4.23739263]
[1748580144093,4.23739263,164.84,164.77,30.14]
[1748580144302,4.23739263,164.84,164.77,34.37739263]
[1748580144801,0.03931193,164.82,164.79,0.04509958]
[1748580145303,6.0667,164.8,164.79,0.04509958]
[1748580145899,6.0667,164.8,164.79,9.958e-05]
[1748580169839,0.03931193,164.82,164.79,4.23749221]
[1748580170132,0.03931193,164.82,164.81,4.23739263]
[1748580173937,6.10531193,164.82,164.81,4.23739263]
[1748580178436,0.03931193,164.82,164.81,4.23739263]
[1748580180839,4.063,164.94,164.81,10.29739263]
[1748580181028,34.35739263,164.93,164.85,4.23739263]
[1748580181332,30.12,164.93,164.87,4.23739263]
[1748580181932,0.04233331,164.92,164.88,0.04263792]
[1748580182828,4.27972594,164.92,164.88,0.04263792]
[1748580183029,6.0634,164.89,164.88,0.04263792]
[1748580261804,10.30079263,164.89,164.88,3.792e-05]
[1748580268715,6.0634,164.89,164.88,3.792e-05]
[1748580303148,6.0634,164.89,164.88,4.23743055]
[1748580304537,12.1172,165.03,164.88,127.17743055]
[1748580304739,12.1172,165.03,164.95,4.23739263]
[1748580304740,2.1166,165.02,164.95,4.23739263]
[1748580304941,6.0609,164.96,164.95,4.23739263]
[1748580310049,0.03971435,164.97,164.95,4.23739263]
[1748580310250,36.37709263,165.06,164.95,4.23739263]
[1748580310441,36.37709263,165.06,164.97,4.23739263]
[1748580310639,6.0597,165.0,164.97,34.31739263]
[1748580310842,6.0597,165.0,164.99,4.23739263]
[1748580311247,0.04014409,165.01,164.99,4.23739263]
[1748580311746,6.09924409,165.01,164.99,4.23739263]
[1748580312538,0.04014409,165.01,164.99,4.23739263]
[1748580312748,0.04014409,165.01,164.98,0.04636841]
[1748580312948,0.04014409,165.01,164.99,4.23739263]
[1748580313144,6.0594,165.0,164.99,4.23739263]
[1748580313349,0.04014409,165.01,164.99,4.23739263]
[1748580313745,4.0604,165.07,164.99,4.23739263]
[1748580313947,137.18920278,165.09,165.03,4.23739263]
[1748580314246,6.0579,165.04,165.03,4.23739263]
[1748580315346,137.18920278,165.09,165.02,0.03834909]
[1748580315552,6.0583,165.03,165.02,4.27574172]
[1748580315950,6.0583,165.03,165.02,0.03834909]
[1748580324655,1.9733,165.07,165.02,0.03834909]
[1748580325466,6.0583,165.03,165.02,0.03834909]
[1748580337877,6.0583,165.03,165.02,4.2660983]
[1748580343379,2.0535,165.06,165.05,4.22774921]
[1748580344282,8.1107,165.06,165.05,4.22774921]
[1748580348078,6.0582,165.04,165.03,4.22774921]
[1748580348276,6.0582,165.04,165.02,0.03834909]
[1748580348487,6.0582,165.04,165.03,4.22774921]
[1748580348683,6.0582,165.04,165.02,0.03834909]
[1748580348878,6.0582,165.04,165.03,4.22774921]
[1748580349883,6.0582,165.04,165.02,0.03834909]
[1748580350185,6.0582,165.04,165.03,4.22774921]
[1748580350385,6.0576,165.05,165.03,4.22774921]
[1748580354591,6.0573,165.06,165.03,10.28604921]
[1748580354897,1.9733,165.07,165.05,4.22774921]
[1748580355287,6.0572,165.06,165.05,4.22774921]
[1748580360493,2.0415,165.1,165.02,0.03834909]
[1748580360690,2.0765,165.09,165.04,4.22774921]
[1748580360894,2.0765,165.09,165.05,0.03824288]
[1748580361091,6.0572,165.06,165.05,0.03824288]
[1748580361495,1.9732,165.08,165.05,0.03824288]
[1748580361698,2.0765,165.09,165.07,4.22774921]
[1748580361900,2.0415,165.1,165.07,4.22774921]
[1748580362099,2.0415,165.1,165.09,4.22774921]
[1748580362299,2.0415,165.1,165.08,4.22774921]
[1748580364099,6.0561,165.09,165.05,36.57574288]
[1748580367003,140.19707236,165.14,165.05,30.51824288]
[1748580367213,6.1603,165.18,165.1,6.60136287]
[1748580367409,6.1603,165.18,165.12,0.04493168]
[1748580367801,6.0546,165.13,165.12,0.04493168]
[1748580375415,6.0546,165.13,165.12,3.168e-05]
[1748580383721,6.10082542,165.14,165.12,3.168e-05]
[1748580383923,0.04652542,165.14,165.13,4.22190592]
[1748580384124,0.04652542,165.14,165.12,3.168e-05]
[1748580384315,6.10102542,165.14,165.12,3.168e-05]
[1748580384515,6.10102542,165.14,165.12,4.2219376]
[1748580385727,6.10102542,165.14,165.13,4.22190592]
[1748580388332,0.04652542,165.14,165.13,4.22190592]
[1748580388721,6.10082542,165.14,165.13,4.22190592]
[1748580390528,6.0546,165.13,165.12,3.168e-05]
[1748580401043,0.04652542,165.14,165.12,4.2219376]
[1748580401344,0.04652542,165.14,165.12,34.7619376]
[1748580401536,0.04652542,165.14,165.13,4.22190592]
[1748580401840,6.10082542,165.14,165.12,30.54003168]
[1748580402040,6.10082542,165.14,165.12,34.7619376]
[1748580403639,6.0546,165.13,165.12,34.7619376]
[1748580404141,6.0546,165.13,165.12,30.54003168]
[1748580405248,6.10092542,165.14,165.12,30.54003168]
[1748580407642,0.04652542,165.14,165.12,36.59493168]
[1748580407842,0.04652542,165.14,165.12,30.54003168]
[1748580408141,0.04652542,165.14,165.13,6.0546]
[1748580408740,6.0531,165.18,165.14,6.0542]
[1748580409140,34.7266,165.22,165.14,118.16]
[1748580409344,34.7266,165.22,165.16,6.0535]
[1748580409345,6.0523,165.2,165.16,6.0535]
[1748580409541,6.0523,165.2,165.16,36.5935]
[1748580409745,6.0523,165.2,165.16,36.6364195]
[1748580411150,6.0526,165.19,165.16,36.6364195]
[1748580411449,4.1866,165.22,165.16,30.5829195]
[1748580411847,6.0525,165.19,165.16,30.5829195]
[1748580413550,4.1866,165.22,165.16,30.5829195]
[1748580414950,6.0532,165.17,165.16,30.5829195]
[1748580416947,4.1866,165.22,165.16,30.5829195]
[1748580416948,6.0529,165.18,165.16,30.5829195]
[1748580417351,4.1866,165.22,165.16,30.5829195]
[1748580417853,6.0531,165.18,165.16,30.5829195]
[1748580418049,4.1866,165.22,165.16,30.5829195]
[1748580419150,6.0532,165.17,165.16,30.5829195]
[1748580420450,6.0532,165.17,165.16,0.0429195]
[1748580421150,6.0546,165.13,165.12,30.52]
[1748580422449,6.055,165.12,165.11,0.04046663]
[1748580425953,6.0547,165.13,165.11,0.04046663]
[1748580426356,0.04636426,165.14,165.11,0.04046663]
[1748580426557,6.10066426,165.14,165.11,0.04046663]
[1748580426957,0.04636426,165.14,165.11,0.04046663]
[1748580427560,0.04636426,165.14,165.12,6.0548]
[1748580429157,0.04636426,165.14,165.13,6.0546]
[1748580429465,0.04636426,165.14,165.13,36.9746]
[1748580431867,0.04636426,165.14,165.13,30.92]
[1748580434967,0.04636426,165.14,165.13,36.9746]
[1748580438567,4.1866,165.22,165.13,30.92]
[1748580438868,4.1866,165.22,165.13,37.51759627]
[1748580439560,4.1866,165.22,165.16,6.09275747]
[1748580440166,6.0523,165.2,165.16,6.09275747]
[1748580441266,6.0523,165.2,165.16,0.03925747]
[1748580441465,6.0524,165.19,165.16,0.03925747]
[1748580443068,6.0524,165.19,165.16,6.09255747]
[1748580443873,4.1866,165.22,165.16,0.03925747]
[1748580447963,6.0532,165.17,165.16,0.03925747]
[1748580471087,30.9,165.31,165.16,35.15658326]
[1748580471291,4.21653694,165.29,165.22,0.03859052]
[1748580471489,4.21634187,165.29,165.24,0.0404206]
[1748580471991,6.0502,165.25,165.24,0.0404206]
[1748580482499,6.0501,165.26,165.24,0.0404206]
[1748580483602,36.8604,165.3,165.24,0.0404206]
[1748580484305,5.9604,165.3,165.24,0.0404206]
[1748580484502,2.0045,165.3,165.24,0.0404206]
[1748580484804,30.9,165.33,165.24,0.0404206]
[1748580486103,6.1917,165.35,165.25,6.58871378]
[1748580486304,6.1917,165.35,165.28,0.04193315]
[1748580486506,6.1917,165.35,165.28,30.94193315]
[1748580486706,6.0473,165.33,165.28,30.94193315]
[1748580486898,6.1917,165.35,165.28,30.94193315]
[1748580487200,6.0472,165.34,165.29,6.0485]
[1748580487401,6.1917,165.35,165.28,30.94193315]
[1748580487594,30.66,165.39,165.28,30.94193315]
[1748580487795,30.66,165.39,165.32,0.03999475]
[1748580489002,30.66,165.39,165.32,6.08769475]
[1748580489203,12.73611378,165.44,165.32,30.69999475]
[1748580489403,6.0459,165.37,165.36,0.03868216]
[1748580489796,6.1474,165.44,165.36,30.69868216]
[1748580490294,6.1474,165.44,165.36,148.41868216]
[1748580490701,6.044,165.43,165.36,148.41868216]
[1748580490903,30.66,165.47,165.38,0.04186903]
[1748580491095,6.043,165.45,165.38,6.08706903]
[1748580491299,30.66,165.47,165.38,6.08706903]
[1748580491693,6.0437,165.43,165.38,6.08706903]
[1748580492096,30.66,165.47,165.38,0.04186903]
[1748580492804,30.66,165.47,165.38,30.68186903]
[1748580493207,6.0446,165.41,165.38,30.68186903]
[1748580494404,6.0439,165.43,165.38,30.68186903]
[1748580494705,30.66,165.47,165.38,30.68186903]
[1748580495008,6.0444,165.42,165.38,30.68186903]
[1748580495203,30.66,165.47,165.38,30.68186903]
[1748580496702,6.0446,165.41,165.38,30.68186903]
[1748580496902,30.66,165.47,165.38,30.68186903]
[1748580497709,6.0447,165.41,165.38,30.68186903]
[1748580499410,30.66,165.47,165.38,30.68186903]
[1748580500115,30.66,165.47,165.38,36.72696903]
[1748580500715,6.0441,165.42,165.38,30.68186903]
[1748580501212,43.54311378,165.5,165.38,30.68186903]
[1748580501413,43.54311378,165.5,165.42,0.04133907]
[1748580502014,6.0437,165.43,165.42,0.04133907]
[1748580505414,6.0451,165.39,165.38,30.64]
[1748580507614,6.0455,165.38,165.37,0.04165002]
[1748580510324,6.0452,165.39,165.37,0.04165002]
[1748580510515,0.04188764,165.4,165.37,0.04165002]
[1748580510922,6.0455,165.38,165.37,0.04165002]
[1748580521522,6.0469,165.34,165.33,30.62]
[1748580525928,6.0473,165.33,165.32,0.04502227]
[1748580528440,6.047,165.34,165.32,0.04502227]
[1748580529039,6.0473,165.33,165.32,0.04502227]
[1748580538735,0.0456312,165.35,165.32,0.04502227]
[1748580538736,6.047,165.34,165.32,0.04502227]
[1748580539042,0.0456312,165.35,165.32,0.04502227]
[1748580539845,6.0473,165.33,165.32,0.04502227]
[1748580544953,6.0471,165.34,165.32,0.04502227]
[1748580545153,0.0456312,165.35,165.32,0.04502227]
[1748580546050,6.0473,165.33,165.32,0.04502227]
[1748580547053,6.047,165.34,165.32,0.04502227]
[1748580547258,0.0456312,165.35,165.32,0.04502227]
[1748580547748,6.0473,165.33,165.32,0.04502227]
[1748580550256,6.047,165.34,165.32,0.04502227]
[1748580550653,6.0473,165.33,165.32,0.04502227]
[1748580599896,6.0473,165.33,165.32,2.227e-05]
[1748580600092,10.25948017,165.33,165.32,2.227e-05]
[1748580600596,40.47948017,165.33,165.32,2.227e-05]
[1748580601294,40.47948017,165.33,165.17,208.65351214]
[1748580601295,34.43218017,165.33,165.22,30.22]
[1748580601486,34.43218017,165.33,165.23,4.21218017]
[1748580601487,4.21218017,165.3,165.23,4.21218017]
[1748580601691,4.21218017,165.3,165.22,30.22]
[1748580601891,4.21218017,165.3,165.23,4.21218017]
[1748580602390,0.03863905,165.28,165.25,0.04280636]
[1748580602991,6.0499,165.26,165.25,0.04280636]
[1748580605592,0.03863905,165.28,165.25,6.09280636]
[1748580605797,0.03863905,165.28,165.27,4.21218017]
[1748580606902,6.08773905,165.28,165.27,4.21218017]
[1748580616509,0.03863905,165.28,165.27,4.21218017]
[1748580617419,6.08773905,165.28,165.27,4.21218017]
[1748580618816,4.21218017,165.35,165.27,4.21218017]
[1748580619021,34.2541,165.36,165.3,4.21218017]
[1748580619813,0.03839819,165.35,165.3,4.21218017]
[1748580620116,0.03839819,165.35,165.31,0.04134079]
[1748580620518,6.0477,165.32,165.31,0.04134079]
[1748580623519,6.0477,165.32,165.31,4.079e-05]
[1748580629617,0.03839819,165.35,165.31,4.079e-05]
[1748580629817,0.03839819,165.35,165.32,4.21218017]
[1748580630323,0.03839819,165.35,165.34,4.21218017]
[1748580633017,6.08499819,165.35,165.34,4.21218017]
[1748580634814,0.03839819,165.35,165.34,4.21218017]
[1748580635625,6.08499819,165.35,165.34,4.21218017]
[1748580639122,6.0471,165.34,165.31,4.079e-05]
[1748580639323,6.0471,165.34,165.33,4.21218017]
[1748580640021,6.08499819,165.35,165.33,4.21218017]
[1748580640420,0.03839819,165.35,165.33,4.21218017]
[1748580640619,0.03839819,165.35,165.34,30.2]
[1748580641124,0.03839819,165.35,165.34,36.2469]
[1748580641423,30.2,165.42,165.34,30.2]
[1748580641629,149.75166855,165.43,165.36,4.21218017]
[1748580641827,6.0457,165.38,165.36,4.21218017]
[1748580643827,6.0458,165.37,165.36,4.21218017]
[1748580644726,6.0456,165.38,165.36,4.21218017]
[1748580647027,6.0458,165.37,165.36,4.21218017]
[1748580648123,6.0456,165.38,165.36,4.21218017]
[1748580652732,6.0458,165.37,165.36,4.21218017]
[1748580654026,6.0458,165.37,165.35,0.0435742]
[1748580654227,6.0462,165.36,165.35,0.0435742]
[1748580654428,6.0462,165.36,165.35,4.25575437]
[1748580654632,6.046,165.37,165.35,4.25575437]
[1748580655326,6.0456,165.38,165.35,10.30235437]
[1748580655525,6.0456,165.38,165.37,4.21218017]
[1748580657125,6.0456,165.38,165.35,6.0901742]
[1748580657531,6.0456,165.38,165.37,4.21218017]
[1748580662224,0.04602037,165.39,165.35,4.25575437]
[1748580662436,0.04602037,165.39,165.35,0.0435742]
[1748580662630,4.25820054,165.39,165.35,0.0435742]
[1748580663132,4.25820054,165.39,165.31,30.18]
[1748580663133,4.21218017,165.37,165.31,30.18]
[1748580663434,4.21218017,165.37,165.29,526.53218017]
[1748580663435,34.39218017,165.37,165.29,4.21218017]
[1748580663830,6.0484,165.3,165.29,4.21218017]
[1748580664335,6.0488,165.29,165.28,0.04228174]
[1748580665832,6.0485,165.3,165.28,0.04228174]
[1748580666038,0.03831907,165.31,165.28,0.04228174]
[1748580666931,0.03831907,165.31,165.29,6.0487]
[1748580667130,0.03831907,165.31,165.28,0.04228174]
[1748580668138,6.08641907,165.31,165.28,6.09128174]
[1748580668831,0.03831907,165.31,165.28,6.09128174]
[1748580669439,0.03831907,165.31,165.28,0.04228174]
[1748580670138,6.08641907,165.31,165.28,0.04228174]
[1748580670729,0.03831907,165.31,165.28,0.04228174]
[1748580671334,0.03831907,165.31,165.29,6.0488]
[1748580671541,0.03831907,165.31,165.3,30.18]
[1748580673640,0.03831907,165.31,165.28,0.04228174]
[1748580674941,6.0488,165.29,165.28,0.04228174]
[1748580681044,0.03831907,165.31,165.28,30.22228174]
[1748580681542,30.18,165.39,165.28,30.22228174]
[1748580681738,30.18,165.39,165.28,30.18]
[1748580681938,30.18,165.39,165.31,6.0479]
[1748580682138,30.18,165.39,165.32,30.18]
[1748580682338,6.0472,165.34,165.32,30.18]
[1748580683944,6.0473,165.33,165.32,30.18]
[1748580690548,6.0477,165.32,165.31,0.0404358]
[1748580690954,6.1189,165.34,165.26,30.18]
[1748580692046,6.0488,165.29,165.28,0.03867603]
[1748580700560,6.0484,165.3,165.28,0.03867603]
[1748580700761,0.04025067,165.32,165.28,0.03867603]
[1748580701760,6.0488,165.29,165.28,0.03867603]
[1748580702964,0.04025067,165.32,165.28,0.03867603]
[1748580703363,6.08825067,165.32,165.28,6.08747603]
[1748580703564,0.04025067,165.32,165.28,6.08747603]
[1748580703954,6.08795067,165.32,165.29,6.0487]
[1748580704159,6.08795067,165.32,165.28,0.03867603]
[1748580704564,6.0482,165.31,165.28,6.08767603]
[1748580705169,6.0486,165.3,165.28,0.03867603]
[1748580705463,0.04025067,165.32,165.28,0.03867603]
[1748580706468,6.0481,165.31,165.28,0.03867603]
[1748580707270,6.0484,165.3,165.28,0.03867603]
[1748580707571,0.04025067,165.32,165.28,0.03867603]
[1748580707770,6.0486,165.3,165.28,0.03867603]
[1748580708272,0.04025067,165.32,165.28,0.03867603]
[1748580708273,6.08825067,165.32,165.28,0.03867603]
[1748580708967,6.0481,165.31,165.28,0.03867603]
[1748580709169,0.04025067,165.32,165.28,0.03867603]